fUST/lending_fUST_20250219
["ID","MTS","AMOUNT","RATE_DAILY","PERIOD"]
[353628434,1739969445020,-741.72,0.0001526,2]
[353628436,1739969445030,-2604.0,0.0001526,2]
[353628438,1739969445039,-711.65,0.0001526,2]
[353628440,1739969445048,-1498.83,0.0001526,2]
[353628442,1739969445058,-12066.72,0.0001526,2]
[353628444,1739969445067,-849.24,0.0001526,2]
[353628446,1739969445078,-3180.99,0.0001526,2]
[353628448,1739969445089,-1175.72,0.0001526,2]
[353628450,1739969445098,-500.0,0.0001526,2]
[353628452,1739969445108,-151.0,0.000153,2]
[353628454,1739969445118,-2048.68,0.00015342,2]
[353628456,1739969445128,-500.0,0.00015342,2]
[353628458,1739969445138,-535.86,0.00015342,2]
[353628460,1739969445148,-741.72,0.00015342,2]
[353628462,1739969445157,-2604.0,0.00015342,2]
[353628464,1739969445168,-711.65,0.00015342,2]
[353628466,1739969445177,-1498.83,0.00015342,2]
[353628468,1739969445187,-12066.72,0.00015342,2]
[353628470,1739969445196,-849.24,0.00015342,2]
[353628472,1739969445206,-3180.99,0.00015342,2]
[353628474,1739969445216,-1175.72,0.00015342,2]
[353628476,1739969445226,-402.5828796,0.00015342,2]
[353628478,1739969445236,-1000.0,0.00015421,2]
[353628480,1739969445245,-1000.0,0.00015421,2]
[353628482,1739969445256,-331.98758965,0.00015421,2]
[353628484,1739969445265,-1000.0,0.00015421,2]
[353628486,1739969445275,-1072.78652871,0.00015421,2]
[353628488,1739969445285,-1000.0,0.00015421,2]
[353628490,1739969445295,-522.21733561,0.00015421,2]
[353628493,1739969445305,-2048.68,0.00015424,2]
[353628494,1739969445315,-209.99902174,0.00015424,2]
[353628497,1739969445324,-535.86,0.00015424,2]
[353628499,1739969445334,-741.72,0.00015424,2]
[353628501,1739969445343,-2604.0,0.00015424,2]
[353628503,1739969445353,-711.65,0.00015424,2]
[353628505,1739969445370,-1498.83,0.00015424,2]
[353628506,1739969445379,-12066.72,0.00015424,2]
[353628509,1739969445388,-849.24,0.00015424,2]
[353628510,1739969445398,-3180.99,0.00015424,2]
[353628513,1739969445408,-1175.72,0.00015424,2]
[353628515,1739969445418,-1500.0,0.00015431,2]
[353628517,1739969445427,-1500.0,0.00015431,2]
[353628519,1739969445437,-151.0,0.000155,2]
[353628521,1739969445447,-151.0,0.000155,2]
[353628523,1739969445456,-2048.68,0.00015506,2]
[353628525,1739969445465,-535.86,0.00015506,2]
[353628526,1739969445474,-741.72,0.00015506,2]
[353628529,1739969445484,-2604.0,0.00015506,2]
[353628531,1739969445493,-711.65,0.00015506,2]
[353628533,1739969445503,-1498.83,0.00015506,2]
[353628535,1739969445513,-12066.72,0.00015506,2]
[353628537,1739969445523,-849.24,0.00015506,2]
[353628539,1739969445532,-3180.99,0.00015506,2]
[353628541,1739969445542,-1175.72,0.00015506,2]
[353628543,1739969445551,-500.0,0.00015523,2]
[353628545,1739969445560,-353.60210934,0.00015523,2]
[353628547,1739969445570,-153.0,0.00015534,2]
[353628549,1739969445579,-407.880593,0.00015534,2]
[353628551,1739969445589,-306.0,0.00015534,2]
[353628553,1739969445599,-154.7376905,0.00015534,2]
[353628555,1739969445609,-306.0,0.00015534,2]
[353628557,1739969445618,-153.0,0.00015534,2]
[353628559,1739969445627,-153.0,0.00015534,2]
[353628561,1739969445637,-154.7376905,0.00015534,2]
[353628563,1739969445646,-154.7376905,0.00015534,2]
[353628565,1739969445656,-153.0,0.00015534,2]
[353628567,1739969445666,-153.0,0.00015534,2]
[353628569,1739969445675,-154.7376905,0.00015534,2]
[353628571,1739969445685,-154.7376905,0.00015534,2]
[353628573,1739969445695,-153.0,0.00015534,2]
[353628575,1739969445704,-153.0,0.00015534,2]
[353628577,1739969445713,-154.7376905,0.00015534,2]
[353628579,1739969445722,-153.0,0.00015534,2]
[353628581,1739969445731,-154.7376905,0.00015534,2]
[353628583,1739969445740,-154.7376905,0.00015534,2]
[353628585,1739969445749,-154.7376905,0.00015534,2]
[353628587,1739969445759,-500.0,0.00015567,2]
[353628589,1739969445768,-605.65031961,0.00015567,2]
[353628590,1739969445777,-500.0,0.00015567,2]
[353628592,1739969445787,-2048.89942023,0.00015589,2]
[353628594,1739969445797,-535.87,0.00015589,2]
[353628596,1739969445807,-741.86639847,0.00015589,2]
[353628599,1739969445816,-2604.1655477,0.00015589,2]
[353628600,1739969445825,-711.68148451,0.00015589,2]
[353628602,1739969445835,-1498.93555301,0.00015589,2]
[353628605,1739969445845,-12066.8905893,0.00015589,2]
[353628607,1739969445855,-849.29381126,0.00015589,2]
[353628609,1739969445864,-3181.01740344,0.00015589,2]
[353628610,1739969445874,-1175.87926382,0.00015589,2]
[353628612,1739969445883,-355.163177,0.00015682,2]
[353628614,1739969445893,-151.0,0.000157,2]
[353628617,1739969445902,-151.0,0.00015765,2]
[353628619,1739969445912,-396.337412,0.00015775,2]
[353628620,1739969445921,-396.337412,0.00015775,2]
[353628622,1739969445930,-205.501437,0.00015775,2]
[353628624,1739969445939,-700.0,0.00015808,2]
[353628626,1739969445949,-151.0,0.000159,2]
[353628627,1739969445958,-151.0,0.00016,2]
[353628628,1739969445967,-1500.0,0.00016022,2]
[353628629,1739969445977,-557.1188801,0.00016062,2]
[353628630,1739969445987,-557.1188801,0.00016062,2]
[353628632,1739969445997,-557.1188801,0.00016062,2]
[353628633,1739969446007,-684.97113629,0.00016071,2]
[353628635,1739969446017,-456.0,0.00016099,2]
[353628636,1739969446027,-456.0,0.00016099,2]
[353628637,1739969446036,-456.0,0.00016099,2]
[353628638,1739969446046,-456.0,0.00016099,2]
[353628640,1739969446055,-456.0,0.00016099,2]
[353628641,1739969446065,-456.0,0.00016099,2]
[353628642,1739969446075,-456.0,0.00016099,2]
[353628643,1739969446085,-456.0,0.00016099,2]
[353628644,1739969446096,-587.0,0.000161,2]
[353628645,1739969446105,-587.0,0.000161,2]
[353628648,1739969446115,-587.0,0.000161,2]
[353628649,1739969446125,-587.0,0.000161,2]
[353628650,1739969446135,-587.0,0.000161,2]
[353628651,1739969446144,-587.0,0.000161,2]
[353628652,1739969446153,-587.0,0.000161,2]
[353628653,1739969446164,-456.0,0.00016101,2]
[353628654,1739969446174,-456.0,0.00016101,2]
[353628655,1739969446183,-456.0,0.00016101,2]
[353628656,1739969446193,-456.0,0.00016101,2]
[353628658,1739969446202,-456.0,0.00016101,2]
[353628659,1739969446211,-456.0,0.00016101,2]
[353628661,1739969446220,-456.0,0.00016101,2]
[353628663,1739969446229,-456.0,0.00016101,2]
[353628665,1739969446239,-456.0,0.00016101,2]
[353628667,1739969446248,-587.0,0.00016101,2]
[353628669,1739969446257,-587.0,0.00016101,2]
[353628671,1739969446267,-587.0,0.00016101,2]
[353628673,1739969446276,-587.0,0.00016101,2]
[353628676,1739969446284,-587.0,0.00016101,2]
[353628679,1739969446294,-587.0,0.00016101,2]
[353628681,1739969446303,-587.0,0.00016101,2]
[353628683,1739969446312,-587.0,0.00016101,2]
[353628685,1739969446321,-587.0,0.00016101,2]
[353628687,1739969446330,-587.0,0.00016101,2]
[353628689,1739969446339,-456.0,0.00016102,2]
[353628691,1739969446348,-456.0,0.00016102,2]
[353628693,1739969446358,-456.0,0.00016102,2]
[353628695,1739969446366,-456.0,0.00016102,2]
[353628697,1739969446376,-456.0,0.00016102,2]
[353628699,1739969446385,-456.0,0.00016102,2]
[353628701,1739969446394,-456.0,0.00016102,2]
[353628703,1739969446403,-456.0,0.00016102,2]
[353628705,1739969446412,-456.0,0.00016102,2]
[353628707,1739969446421,-456.0,0.00016102,2]
[353628709,1739969446430,-456.0,0.00016102,2]
[353628711,1739969446440,-456.0,0.00016102,2]
[353628713,1739969446449,-456.0,0.00016102,2]
[353628715,1739969446458,-456.0,0.00016102,2]
[353628717,1739969446467,-456.0,0.00016102,2]
[353628719,1739969446476,-456.0,0.00016102,2]
[353628721,1739969446485,-456.0,0.00016102,2]
[353628723,1739969446494,-587.0,0.00016103,2]
[353628725,1739969446503,-587.0,0.00016103,2]
[353628727,1739969446513,-587.0,0.00016103,2]
[353628729,1739969446522,-587.0,0.00016103,2]
[353628731,1739969446531,-587.0,0.00016103,2]
[353628733,1739969446540,-587.0,0.00016103,2]
[353628735,1739969446549,-587.0,0.00016103,2]
[353628737,1739969446558,-587.0,0.00016103,2]
[353628739,1739969446567,-587.0,0.00016103,2]
[353628741,1739969446576,-587.0,0.00016103,2]
[353628743,1739969446585,-587.0,0.00016103,2]
[353628745,1739969446594,-587.0,0.00016103,2]
[353628747,1739969446603,-587.0,0.00016103,2]
[353628749,1739969446612,-587.0,0.00016103,2]
[353628751,1739969446622,-587.0,0.00016103,2]
[353628753,1739969446631,-587.0,0.00016103,2]
[353628755,1739969446640,-587.0,0.00016103,2]
[353628757,1739969446649,-163.0,0.00016113,2]
[353628759,1739969446659,-163.0,0.00016113,2]
[353628761,1739969446668,-163.0,0.00016113,2]
[353628763,1739969446677,-163.0,0.00016113,2]
[353628765,1739969446686,-163.0,0.00016113,2]
[353628768,1739969446695,-222.0,0.00016114,2]
[353628770,1739969446704,-222.0,0.00016114,2]
[353628772,1739969446713,-222.0,0.00016114,2]
[353628774,1739969446723,-222.0,0.00016114,2]
[353628776,1739969446733,-222.0,0.00016114,2]
[353628778,1739969446743,-1000.0,0.00016115,2]
[353628780,1739969446752,-1000.3801526,0.00016115,2]
[353628791,1739969446840,-499.0,0.00016164,2]
[353628793,1739969446850,-500.83239552,0.00016173,2]
[353628795,1739969446859,-184.882004,0.0001619,2]
[353628797,1739969446868,-184.882004,0.0001619,2]
[353628799,1739969446878,-4696.480008,0.0001619,2]
[353628801,1739969446887,-236.102534,0.0001619,2]
[353628803,1739969446896,-236.102534,0.0001619,2]
[353628805,1739969446905,-151.0,0.0001619,2]
[353628807,1739969446915,-605.058067,0.0001619,2]
[353628809,1739969446924,-605.058067,0.0001619,2]
[353628811,1739969446934,-151.0,0.0001619,2]
[353628813,1739969446943,-151.0,0.0001619,2]
[353628815,1739969446952,-151.0,0.0001619,2]
[353628817,1739969446961,-209.95799,0.0001619,2]
[353628819,1739969446970,-1071.854575,0.0001619,2]
[353628821,1739969446980,-1071.854575,0.0001619,2]
[353628823,1739969446990,-1516.424899,0.0001619,2]
[353628825,1739969447000,-1516.424899,0.0001619,2]
[353628827,1739969447009,-151.357764,0.0001619,2]
[353628829,1739969447018,-1049.066856,0.0001619,2]
[353628831,1739969447027,-1201.591755,0.0001619,2]
[353628833,1739969447036,-151.357764,0.0001619,2]
[353628835,1739969447046,-1049.066856,0.0001619,2]
[353628837,1739969447055,-1201.591755,0.0001619,2]
[353628839,1739969447063,-500.0,0.0001619,2]
[353628841,1739969447074,-502.613379,0.0001619,2]
[353628843,1739969447084,-500.0,0.0001619,2]
[353628845,1739969447095,-502.613379,0.0001619,2]
[353628847,1739969447104,-160.0,0.00016199,2]
[353628849,1739969447114,-151.0,0.000162,2]
[353628851,1739969447123,-151.0,0.000162,2]
[353628853,1739969447133,-151.0,0.000162,2]
[353628855,1739969447142,-151.0,0.000162,2]
[353628857,1739969447151,-151.0,0.000162,2]
[353628859,1739969447162,-151.0,0.000162,2]
[353628861,1739969447171,-151.0,0.000162,2]
[353628863,1739969447181,-500.0,0.000162,2]
[353628865,1739969447190,-500.0,0.000162,2]
[353628867,1739969447200,-500.0,0.000162,2]
[353628869,1739969447209,-500.0,0.000162,2]
[353628871,1739969447218,-500.0,0.000162,2]
[353628873,1739969447227,-500.0,0.000162,2]
[353628875,1739969447237,-500.0,0.000162,2]
[353628877,1739969447247,-500.0,0.000162,2]
[353628879,1739969447257,-500.0,0.000162,2]
[353628881,1739969447267,-500.0,0.000162,2]
[353628883,1739969447277,-500.0,0.000162,2]
[353628885,1739969447287,-500.0,0.000162,2]
[353628887,1739969447298,-500.0,0.000162,2]
[353628889,1739969447308,-500.0,0.000162,2]
[353628891,1739969447318,-500.0,0.000162,2]
[353628893,1739969447328,-500.0,0.000162,2]
[353628895,1739969447338,-500.0,0.000162,2]
[353628897,1739969447349,-500.0,0.000162,2]
[353628899,1739969447359,-500.0,0.000162,2]
[353628901,1739969447368,-500.0,0.000162,2]
[353628903,1739969447378,-500.0,0.000162,2]
[353628905,1739969447388,-500.0,0.000162,2]
[353628907,1739969447397,-500.0,0.000162,2]
[353628909,1739969447407,-500.0,0.000162,2]
[353628911,1739969447417,-500.0,0.000162,2]
[353628913,1739969447427,-603.554545,0.000162,2]
[353628915,1739969447436,-151.0,0.000162,2]
[353628917,1739969447445,-1071.854575,0.000162,2]
[353628919,1739969447455,-1071.854575,0.000162,2]
[353628921,1739969447465,-1516.424899,0.000162,2]
[353628923,1739969447475,-1516.424899,0.000162,2]
[353628925,1739969447484,-59843.7751385,0.000162,2]
[353628927,1739969447494,-59843.77513849,0.000162,2]
[353628929,1739969447503,-59843.77513849,0.000162,2]
[353628931,1739969447512,-1049.066856,0.000162,2]
[353628933,1739969447521,-1201.591755,0.000162,2]
[353628935,1739969447531,-1049.066856,0.000162,2]
[353628937,1739969447541,-1201.591755,0.000162,2]
[353628939,1739969447550,-500.0,0.000162,2]
[353628941,1739969447560,-502.613379,0.000162,2]
[353628943,1739969447569,-500.0,0.000162,2]
[353628945,1739969447579,-502.613379,0.000162,2]
[353628947,1739969447588,-557.1188801,0.00016391,2]
[353628949,1739969447598,-557.1188801,0.00016391,2]
[353628951,1739969447607,-557.1188801,0.00016391,2]
[353628953,1739969447617,-557.1188801,0.00016391,2]
[353628955,1739969447627,-557.1188801,0.00016391,2]
[353628957,1739969447636,-557.1188801,0.00016391,2]
[353628959,1739969447645,-557.1188801,0.00016391,2]
[353628961,1739969447655,-557.1188801,0.00016391,2]
[353628963,1739969447664,-557.1188801,0.00016391,2]
[353628965,1739969447673,-557.1188801,0.00016391,2]
[353628967,1739969447683,-395.8987099,0.00016391,2]
[353628969,1739969447691,-557.1188801,0.00016391,2]
[353628971,1739969447701,-557.1188801,0.00016391,2]
[353628973,1739969447711,-557.1188801,0.00016391,2]
[353628975,1739969447720,-557.1188801,0.00016391,2]
[353628977,1739969447730,-557.1188801,0.00016391,2]
[353628979,1739969447740,-557.1188801,0.00016391,2]
[353628981,1739969447749,-557.1188801,0.00016391,2]
[353628983,1739969447759,-557.1188801,0.00016391,2]
[353628985,1739969447768,-557.1188801,0.00016391,2]
[353628987,1739969447778,-557.1188801,0.00016391,2]
[353628989,1739969447788,-557.1188801,0.00016391,2]
[353628991,1739969447797,-168.74305742,0.00016422,2]
[353628993,1739969447807,-1500.0,0.00016422,2]
[353628995,1739969447817,-501.30101814,0.00016422,2]
[353628997,1739969447827,-1500.0,0.00016422,2]
[353629000,1739969447837,-500.0,0.00016427,2]
[353629002,1739969447850,-1000.0,0.00016438,2]
[353629004,1739969447869,-1000.0,0.00016438,2]
[353629006,1739969447884,-397.53754396,0.00016438,2]
[353629008,1739969447894,-10052.38462478,0.000165,2]
[353629010,1739969447903,-500.0,0.00016527,2]
[353629012,1739969447913,-151.0,0.000166,2]
[353629014,1739969447923,-500.0,0.000166,7]
[353629016,1739969447932,-500.0,0.000166,7]
[353629018,1739969447942,-500.0,0.000166,7]
[353629020,1739969447953,-500.0,0.000166,7]
[353629022,1739969447964,-500.0,0.000166,7]
[353629024,1739969447974,-500.0,0.000166,7]
[353629026,1739969447984,-500.0,0.000166,7]
[353629028,1739969447994,-500.0,0.000166,7]
[353629030,1739969448004,-500.0,0.000166,7]
[353629032,1739969448013,-566.69,0.000166,7]
[353629034,1739969448023,-500.0,0.00016627,2]
[353629036,1739969448034,-310.9439493,0.00016712,2]
[353629038,1739969448046,-500.0,0.00016727,2]
[353629040,1739969448056,-2003.6147836,0.00016728,2]
[353629042,1739969448067,-1650.54605966,0.00016728,2]
[353629044,1739969448077,-823.0,0.00016731,2]
[353629046,1739969448093,-467.5136888,0.00016732,2]
[353629048,1739969448107,-160.0,0.00016772,2]
[353629050,1739969448118,-59843.77513849,0.00016773,2]
[353629052,1739969448128,-151.0,0.00016824,2]
[353629054,1739969448138,-151.0,0.00016824,2]
[353629056,1739969448149,-151.0,0.00016824,2]
[353629058,1739969448159,-151.0,0.00016824,2]
[353629060,1739969448169,-151.0,0.00016824,2]
[353629062,1739969448179,-500.0,0.00016827,2]
[353629064,1739969448191,-498.57453263,0.0001687,2]
[353629066,1739969448202,-151.0,0.000169,2]
[353629068,1739969448213,-500.0,0.00016927,2]
[353629070,1739969448223,-674.26532336,0.00017,2]
[353629072,1739969448233,-363.02939924,0.00017,2]
[353629074,1739969448244,-500.0,0.00017027,2]
[353629076,1739969448255,-1000.95075043,0.00017116,2]
[353629078,1739969448265,-317.631759,0.00017123,2]
[353629080,1739969448275,-500.0,0.00017127,2]
[353629082,1739969448285,-150.0,0.00017162,2]
[353629084,1739969448296,-1971.0,0.00017162,2]
[353629086,1739969448306,-538.0,0.00017162,2]
[353629088,1739969448317,-2307.589,0.00017162,2]
[353629090,1739969448326,-150.0,0.00017162,2]
[353629092,1739969448337,-700.0,0.00017178,2]
[353629094,1739969448346,-829.5975416,0.00017213,2]
[353629096,1739969448356,-557.1188801,0.00017213,2]
[353629098,1739969448366,-773.1005803,0.00017213,2]
[353629100,1739969448379,-557.1188801,0.00017213,2]
[353629102,1739969448391,-557.1188801,0.00017213,2]
[353629104,1739969448401,-557.1188801,0.00017213,2]
[353629106,1739969448412,-557.1188801,0.00017213,2]
[353629108,1739969448422,-1046.3490161,0.00017213,2]
[353629110,1739969448432,-557.1188801,0.00017213,2]
[353629112,1739969448443,-557.1188801,0.00017213,2]
[353629114,1739969448453,-557.1188801,0.00017213,2]
[353629116,1739969448463,-557.1188801,0.00017213,2]
[353629118,1739969448472,-557.1188801,0.00017213,2]
[353629120,1739969448482,-557.1188801,0.00017213,2]
[353629122,1739969448494,-557.1188801,0.00017213,2]
[353629124,1739969448505,-557.1188801,0.00017213,2]
[353629126,1739969448516,-557.1188801,0.00017213,2]
[353629128,1739969448526,-865.8830606,0.00017213,2]
[353629130,1739969448537,-557.1188801,0.00017214,2]
[353629132,1739969448547,-500.0,0.00017227,2]
[353629134,1739969448557,-2048.5122614,0.00017247,2]
[353629136,1739969448567,-151.0,0.000173,2]
[353629139,1739969448583,-1503.62720318,0.0001732,2]
[353629141,1739969448593,-500.0,0.00017327,2]
[353629143,1739969448603,-500.0,0.00017427,2]
[353629145,1739969448612,-10498.23162692,0.000175,2]
[353629147,1739969448623,-156.314289,0.000175,2]
[353629149,1739969448632,-502.613379,0.000175,2]
[353629151,1739969448642,-502.613379,0.000175,2]
[353629153,1739969448652,-150.78984482,0.000175,2]
[353629155,1739969448662,-150.78,0.000175,2]
[353629157,1739969448672,-156.55855535,0.000175,2]
[353629159,1739969448683,-156.55855535,0.000175,2]
[353629161,1739969448694,-156.55855535,0.000175,2]
[353629163,1739969448705,-156.55855535,0.000175,2]
[353629165,1739969448715,-156.55855535,0.000175,2]
[353629167,1739969448726,-156.55855535,0.000175,2]
[353629169,1739969448737,-156.55855535,0.000175,2]
[353629181,1739969448747,-156.55855535,0.000175,2]
[353629183,1739969448855,-156.55855535,0.000175,2]
[353629185,1739969448867,-156.55855535,0.000175,2]
[353629187,1739969448879,-156.55855535,0.000175,2]
[353629189,1739969448890,-156.55855535,0.000175,2]
[353629191,1739969448900,-156.55855535,0.000175,2]
[353629193,1739969448910,-156.55855535,0.000175,2]
[353629195,1739969448922,-156.55855535,0.000175,2]
[353629197,1739969448933,-156.55,0.000175,2]
[353629199,1739969448943,-302.52650604,0.000175,2]
[353629201,1739969448956,-302.52650604,0.000175,2]
[353629203,1739969448968,-302.52650604,0.000175,2]
[353629205,1739969448979,-302.52650604,0.000175,2]
[353629207,1739969448991,-302.52650604,0.000175,2]
[353629209,1739969449001,-302.52650604,0.000175,2]
[353629211,1739969449013,-302.52650604,0.000175,2]
[353629213,1739969449024,-302.52650604,0.000175,2]
[353629215,1739969449035,-302.52650604,0.000175,2]
[353629217,1739969449046,-302.52650604,0.000175,2]
[353629219,1739969449057,-302.52650604,0.000175,2]
[353629221,1739969449067,-302.52650604,0.000175,2]
[353629223,1739969449079,-302.52650604,0.000175,2]
[353629225,1739969449092,-302.52650604,0.000175,2]
[353629227,1739969449103,-302.52650604,0.000175,2]
[353629229,1739969449115,-302.52650604,0.000175,2]
[353629231,1739969449125,-302.52650604,0.000175,2]
[353629233,1739969449137,-302.52650604,0.000175,2]
[353629235,1739969449148,-302.52650604,0.000175,2]
[353629237,1739969449159,-302.52,0.000175,2]
[353629239,1739969449172,-14630.41500645,0.000175,2]
[353629242,1739969449182,-500.0,0.00017527,2]
[353629243,1739969449193,-154.65899617,0.00017534,4]
[353629245,1739969449203,-396.337412,0.00017534,2]
[353629248,1739969449216,-396.337412,0.00017534,2]
[353629249,1739969449226,-324.0,0.0001754,2]
[353629251,1739969449237,-355.163177,0.00017589,2]
[353629253,1739969449247,-153.0,0.00017589,2]
[353629256,1739969449258,-355.163177,0.00017589,2]
[353629258,1739969449271,-153.0,0.00017589,2]
[353629260,1739969449281,-355.163177,0.00017589,2]
[353629262,1739969449292,-153.0,0.00017589,2]
[353629263,1739969449302,-1183.40155707,0.0001759,2]
[353629265,1739969449312,-938.86896,0.0001759,2]
[353629267,1739969449322,-938.86896,0.0001759,2]
[353629269,1739969449332,-1802.024645,0.0001759,2]
[353629271,1739969449342,-1802.024645,0.0001759,2]
[353629273,1739969449352,-627.43805,0.0001759,2]
[353629275,1739969449362,-627.43805,0.0001759,2]
[353629277,1739969449372,-151.0,0.0001759,2]
[353629280,1739969449382,-1201.591755,0.0001759,2]
[353629281,1739969449393,-1201.591755,0.0001759,2]
[353629283,1739969449404,-206.96749376,0.00017598,2]
[353629285,1739969449413,-160.0,0.00017599,2]
[353629287,1739969449420,-586102.8274615,0.000176,10]
[353629305,1739969449598,-1112.36443761,0.000176,10]
[353629345,1739969449993,-500.0,0.00013698,2]
[353629347,1739969450003,-500.0,0.00013698,2]
[353629349,1739969450012,-500.0,0.0001378,2]
[353629351,1739969450022,-385.44746478,0.00013863,2]
[353629353,1739969450031,-396.0,0.00017162,2]
[353629355,1739969450041,-2281.4908802,0.000176,10]
[353629357,1739969450053,-378275.38534123,0.000176,10]
[353629359,1739969450062,-47035.95,0.000176,5]
[353629361,1739969450072,-943252.33,0.000176,5]
[353629363,1739969450082,-600.0,0.000176,2]
[353629365,1739969450095,-500.0,0.000176,2]
[353629367,1739969450104,-500.0,0.000176,2]
[353629369,1739969450113,-1194.523493,0.000176,2]
[353629371,1739969450123,-1194.523493,0.000176,2]
[353629373,1739969450133,-1194.523493,0.000176,2]
[353629375,1739969450143,-1194.523493,0.000176,2]
[353629377,1739969450152,-938.86896,0.000176,2]
[353629379,1739969450165,-938.86896,0.000176,2]
[353629381,1739969450174,-938.86896,0.000176,2]
[353629383,1739969450183,-938.86896,0.000176,2]
[353629385,1739969450192,-2832.897483,0.000176,2]
[353629387,1739969450202,-2832.897483,0.000176,2]
[353629389,1739969450211,-2832.897483,0.000176,2]
[353629391,1739969450221,-2832.897483,0.000176,2]
[353629393,1739969450230,-388.09662,0.000176,2]
[353629395,1739969450240,-388.09662,0.000176,2]
[353629397,1739969450249,-209.394915,0.000176,2]
[353629399,1739969450259,-151.0,0.000176,2]
[353629401,1739969450268,-151.0,0.000176,2]
[353629403,1739969450277,-151.0,0.000176,2]
[353629405,1739969450287,-183.232478,0.000176,2]
[353629407,1739969450296,-7612.840073,0.000176,2]
[353629409,1739969450306,-7612.840073,0.000176,2]
[353629411,1739969450316,-1802.024645,0.000176,2]
[353629413,1739969450325,-1802.024645,0.000176,2]
[353629415,1739969450334,-1802.024645,0.000176,2]
[353629417,1739969450343,-1802.024645,0.000176,2]
[353629419,1739969450352,-151.0,0.000176,2]
[353629420,1739969450362,-151.0,0.000176,2]
[353629421,1739969450371,-151.0,0.000176,2]
[353629422,1739969450381,-151.0,0.000176,2]
[353629423,1739969450391,-151.0,0.000176,2]
[353629424,1739969450401,-151.0,0.000176,2]
[353629425,1739969450411,-150.29,0.000176,2]
[353629426,1739969450421,-314.0,0.000176,2]
[353629427,1739969450431,-314.0,0.000176,2]
[353629428,1739969450442,-314.0,0.000176,2]
[353629429,1739969450453,-314.0,0.000176,2]
[353629430,1739969450463,-314.0,0.000176,2]
[353629431,1739969450473,-627.43805,0.000176,2]
[353629432,1739969450482,-627.43805,0.000176,2]
[353629433,1739969450492,-627.43805,0.000176,2]
[353629434,1739969450502,-627.43805,0.000176,2]
[353629435,1739969450512,-184.882004,0.000176,2]
[353629436,1739969450522,-184.882004,0.000176,2]
[353629437,1739969450532,-184.882004,0.000176,2]
[353629438,1739969450541,-184.882004,0.000176,2]
[353629439,1739969450551,-4696.480008,0.000176,2]
[353629448,1739969450653,-4696.480008,0.000176,2]
[353629450,1739969450663,-236.102534,0.000176,2]
[353629452,1739969450673,-236.102534,0.000176,2]
[353629454,1739969450683,-236.102534,0.000176,2]
[353629456,1739969450692,-236.102534,0.000176,2]
[353629458,1739969450702,-151.0,0.000176,2]
[353629460,1739969450711,-151.0,0.000176,2]
[353629462,1739969450720,-605.058067,0.000176,2]
[353629464,1739969450730,-605.058067,0.000176,2]
[353629466,1739969450739,-605.058067,0.000176,2]
[353629468,1739969450749,-605.058067,0.000176,2]
[353629470,1739969450759,-151.0,0.000176,2]
[353629472,1739969450769,-151.0,0.000176,2]
[353629474,1739969450779,-151.0,0.000176,2]
[353629476,1739969450788,-151.0,0.000176,2]